fUST/lending_fUST_20240905
["ID","MTS","AMOUNT","RATE_DAILY","PERIOD"]
[337176255,1725490249151,-565.13,0.00022933,2]
[337176257,1725490249161,-500.0,0.00022933,2]
[337176260,1725490249174,-500.0,0.00022933,2]
[337176262,1725490249183,-500.0,0.00022933,2]
[337176264,1725490249194,-642.9,0.00022933,2]
[337176266,1725490249204,-568.28,0.00022933,2]
[337176268,1725490249214,-500.0,0.00022933,2]
[337176270,1725490249224,-500.0,0.00022933,2]
[337176272,1725490249233,-500.0,0.00022933,2]
[337176274,1725490249243,-513.32650629,0.00022933,2]
[337176276,1725490249254,-470.87260195,0.00022933,2]
[337176278,1725490249264,-638.65,0.00022933,2]
[337176280,1725490249275,-500.0,0.00022933,2]
[337176282,1725490249286,-875.74205379,0.00022933,2]
[337176323,1725490249660,-569.65794621,0.00022933,2]
[337176325,1725490249670,-151.0,0.00022933,7]
[337176327,1725490249679,-151.0,0.00022933,7]
[337176329,1725490249689,-500.0,0.00022933,2]
[337176331,1725490249698,-151.0,0.00022933,7]
[337176333,1725490249707,-500.0,0.00022933,2]
[337176335,1725490249718,-1637.501268,0.00022933,7]
[337176337,1725490249728,-2127.64,0.00022933,2]
[337176339,1725490249739,-959.99,0.00022933,2]
[337176341,1725490249749,-1637.501268,0.00022933,7]
[337176343,1725490249758,-500.0,0.00022933,2]
[337176345,1725490249768,-858.87,0.00022933,2]
[337176348,1725490249777,-506.54110749,0.00022933,2]
[337176350,1725490249787,-500.0,0.00022933,2]
[337176352,1725490249797,-500.0,0.00022933,2]
[337176354,1725490249807,-500.0,0.00022933,2]
[337176356,1725490249817,-553.11,0.00022933,2]
[337176358,1725490249827,-2273.210036,0.00022933,7]
[337176360,1725490249840,-500.0,0.00022933,2]
[337176362,1725490249850,-500.0,0.00022933,2]
[337176364,1725490249859,-500.0,0.00022933,2]
[337176366,1725490249869,-2273.210036,0.00022933,7]
[337176368,1725490249881,-500.0,0.00022933,2]
[337176370,1725490249890,-750.75,0.00022933,2]
[337176372,1725490249899,-500.0,0.00022933,2]
[337176374,1725490249908,-500.0,0.00022933,2]
[337176376,1725490249918,-500.0,0.00022933,2]
[337176378,1725490249927,-744.12,0.00022933,2]
[337176380,1725490249936,-500.0,0.00022933,2]
[337176382,1725490249946,-500.0,0.00022933,2]
[337176384,1725490249955,-500.0,0.00022933,2]
[337176386,1725490249965,-500.0,0.00022933,2]
[337176389,1725490249975,-500.0,0.00022933,2]
[337176391,1725490249985,-500.0,0.00022933,2]
[337176393,1725490249995,-500.0,0.00022933,2]
[337176395,1725490250004,-500.0,0.00022933,2]
[337176397,1725490250013,-500.0,0.00022933,2]
[337176399,1725490250024,-503.14,0.00022933,2]
[337176401,1725490250034,-500.0,0.00022933,2]
[337176403,1725490250046,-500.0,0.00022933,2]
[337176405,1725490250057,-500.0,0.00022933,2]
[337176407,1725490250068,-500.0,0.00022933,2]
[337176409,1725490250078,-500.0,0.00022933,2]
[337176411,1725490250088,-500.0,0.00022933,2]
[337176413,1725490250097,-500.0,0.00022933,2]
[337176415,1725490250112,-500.0,0.00022933,2]
[337176417,1725490250122,-500.0,0.00022933,2]
[337176420,1725490250134,-500.0,0.00022933,2]
[337176422,1725490250147,-500.0,0.00022933,2]
[337176424,1725490250158,-500.0,0.00022933,2]
[337176426,1725490250168,-500.0,0.00022933,2]
[337176427,1725490250181,-500.0,0.00022933,2]
[337176428,1725490250192,-500.0,0.00022933,2]
[337176429,1725490250202,-500.0,0.00022933,2]
[337176430,1725490250213,-636.98,0.00022933,2]
[337176431,1725490250223,-175.29379461,0.00022933,2]
[337176432,1725490250233,-500.0,0.00022933,2]
[337176433,1725490250243,-500.0,0.00022933,2]
[337176434,1725490250252,-500.0,0.00022933,2]
[337176436,1725490250262,-500.0,0.00022933,2]
[337176438,1725490250272,-151.0,0.00022933,7]
[337176440,1725490250281,-500.0,0.00022933,2]
[337176442,1725490250290,-518.0,0.00022933,2]
[337176444,1725490250301,-500.0,0.00022933,2]
[337176446,1725490250310,-151.0,0.00022933,7]
[337176448,1725490250321,-500.0,0.00022933,2]
[337176450,1725490250330,-500.0,0.00022933,2]
[337176452,1725490250340,-513.08,0.00022933,2]
[337176454,1725490250351,-500.0,0.00022933,2]
[337176456,1725490250361,-500.0,0.00022933,2]
[337176458,1725490250371,-502.74539724,0.00022933,2]
[337176460,1725490250382,-500.0,0.00022933,2]
[337176462,1725490250391,-1014.38,0.00022933,2]
[337176465,1725490250401,-1283.657328,0.00022933,7]
[337176467,1725490250411,-500.0,0.00022933,2]
[337176469,1725490250421,-1283.657328,0.00022933,7]
[337176471,1725490250430,-500.0,0.00022933,2]
[337176473,1725490250440,-500.0,0.00022933,2]
[337176475,1725490250449,-500.0,0.00022933,2]
[337176477,1725490250458,-500.0,0.00022933,2]
[337176479,1725490250467,-500.0,0.00022933,2]
[337176481,1725490250478,-505.96564613,0.00022933,2]
[337176483,1725490250487,-500.0,0.00022933,2]
[337176485,1725490250496,-568.00639805,0.00022933,2]
[337176487,1725490250506,-488.33642122,0.00022933,2]
[337176489,1725490250516,-500.0,0.00022933,2]
[337176491,1725490250526,-500.13384036,0.00022933,2]
[337176493,1725490250537,-243.02935337,0.00022933,2]
[337176496,1725490250549,-500.0,0.00022933,2]
[337176498,1725490250558,-507.90396879,0.00022933,2]
[337176500,1725490250570,-500.0,0.00022933,2]
[337176503,1725490250581,-505.97,0.00022933,2]
[337176505,1725490250592,-500.0,0.00022933,2]
[337176507,1725490250604,-500.0,0.00022933,2]
[337176509,1725490250615,-500.0,0.00022973,2]
[337176511,1725490250624,-202.98794253,0.00022973,2]
[337176514,1725490250644,-500.0,0.00022973,2]
[337176516,1725490250653,-190.70392364,0.00022973,2]
[337176518,1725490250664,-500.0,0.00022973,2]
[337176520,1725490250674,-500.0,0.00022973,2]
[337176522,1725490250684,-505.69942342,0.00022973,2]
[337176524,1725490250694,-500.0,0.00022973,2]
[337176527,1725490250704,-501.36411391,0.00022973,2]
[337176529,1725490250713,-420.0,0.00023125,2]
[337176531,1725490250723,-537.56,0.00023137,2]
[337176533,1725490250732,-537.56,0.00023137,2]
[337176535,1725490250741,-537.56,0.00023137,2]
[337176537,1725490250750,-537.56,0.00023137,2]
[337176539,1725490250759,-537.56,0.00023137,2]
[337176541,1725490250768,-537.56,0.00023137,2]
[337176543,1725490250777,-537.56,0.00023137,2]
[337176545,1725490250786,-537.56,0.00023137,2]
[337176547,1725490250795,-537.56,0.00023137,2]
[337176549,1725490250804,-537.56,0.00023137,2]
[337176551,1725490250813,-537.56,0.00023137,2]
[337176552,1725490250822,-537.56,0.00023137,2]
[337176554,1725490250831,-537.56,0.00023137,2]
[337176556,1725490250840,-537.56,0.00023137,2]
[337176558,1725490250850,-537.56,0.00023137,2]
[337176560,1725490250859,-537.56,0.00023137,2]
[337176562,1725490250868,-537.56,0.00023137,2]
[337176564,1725490250878,-537.6446189,0.00023137,2]
[337176566,1725490250887,-151.0,0.00023137,7]
[337176568,1725490250896,-151.0,0.00023137,7]
[337176570,1725490250906,-2890.557888,0.00023137,7]
[337176572,1725490250915,-2890.557888,0.00023137,7]
[337176574,1725490250924,-151.0,0.00023137,7]
[337176576,1725490250934,-697.39,0.00023137,2]
[337176578,1725490250943,-697.39,0.00023137,2]
[337176580,1725490250954,-697.39,0.00023137,2]
[337176583,1725490250967,-697.39,0.00023137,2]
[337176585,1725490250979,-697.39,0.00023137,2]
[337176587,1725490250989,-697.39,0.00023137,2]
[337176589,1725490251000,-697.39,0.00023137,2]
[337176591,1725490251010,-697.39,0.00023137,2]
[337176594,1725490251022,-697.39,0.00023137,2]
[337176596,1725490251031,-697.39,0.00023137,2]
[337176598,1725490251043,-697.39,0.00023137,2]
[337176600,1725490251055,-697.39,0.00023137,2]
[337176602,1725490251066,-697.39,0.00023137,2]
[337176605,1725490251078,-697.39,0.00023137,2]
[337176607,1725490251088,-697.39,0.00023137,2]
[337176609,1725490251097,-697.39,0.00023137,2]
[337176626,1725490251315,-697.39,0.00023137,2]
[337176629,1725490251329,-697.42205942,0.00023137,2]
[337176631,1725490251340,-3667.74305242,0.00023141,2]
[337176633,1725490251353,-151.0,0.00023148,7]
[337176635,1725490251364,-505.11940791,0.00023148,2]
[337176638,1725490251373,-500.0,0.00023148,2]
[337176640,1725490251386,-500.0,0.00023148,2]
[337176642,1725490251396,-466.40361962,0.00023148,2]
[337176644,1725490251410,-151.0,0.00023172,2]
[337176646,1725490251421,-500.0,0.00023173,2]
[337176648,1725490251430,-9036.84,0.00023181,2]
[337176650,1725490251441,-1532.82,0.00023181,2]
[337176653,1725490251451,-2273.210036,0.00023181,7]
[337176655,1725490251461,-500.0,0.00023181,2]
[337176657,1725490251471,-2273.210036,0.00023181,7]
[337176659,1725490251481,-500.0,0.00023181,2]
[337176661,1725490251491,-500.0,0.00023181,2]
[337176663,1725490251501,-626.22,0.00023181,2]
[337176665,1725490251511,-1069.76,0.00023181,2]
[337176667,1725490251522,-500.0,0.00023181,2]
[337176669,1725490251531,-1205.5,0.00023181,2]
[337176672,1725490251543,-500.0,0.00023181,2]
[337176674,1725490251556,-1549.83,0.00023181,2]
[337176676,1725490251567,-1523.74,0.00023181,2]
[337176679,1725490251580,-16098.97,0.00023181,2]
[337176681,1725490251593,-682.43,0.00023181,2]
[337176683,1725490251605,-4724.69,0.00023181,2]
[337176685,1725490251616,-1701.22,0.00023181,2]
[337176688,1725490251627,-151.0,0.00023182,7]
[337176690,1725490251638,-151.0,0.00023182,7]
[337176692,1725490251648,-151.0,0.00023182,7]
[337176694,1725490251659,-1637.501268,0.00023182,7]
[337176697,1725490251672,-1637.501268,0.00023182,7]
[337176699,1725490251683,-500.0,0.00023182,2]
[337176701,1725490251695,-868.21,0.00023182,2]
[337176703,1725490251706,-1063.35,0.00023182,2]
[337176705,1725490251716,-748.75,0.00023195,2]
[337176707,1725490251727,-8663.32,0.00023195,2]
[337176710,1725490251738,-3403.05,0.00023195,2]
[337176712,1725490251750,-1248.07,0.00023195,2]
[337176714,1725490251760,-1106.85,0.00023195,2]
[337176716,1725490251773,-1052.87,0.00023195,2]
[337176719,1725490251786,-500.0,0.00023195,2]
[337176721,1725490251799,-5212.29,0.00023195,2]
[337176723,1725490251810,-1460.49,0.00023195,2]
[337176725,1725490251820,-754.96,0.00023195,2]
[337176727,1725490251829,-1573.67,0.00023195,2]
[337176729,1725490251838,-8393.46,0.00023195,2]
[337176731,1725490251849,-7312.31,0.00023195,2]
[337176733,1725490251858,-1341.54,0.00023195,2]
[337176735,1725490251871,-1657.26,0.00023195,2]
[337176737,1725490251883,-500.0,0.00023196,2]
[337176740,1725490251895,-500.0,0.00023196,2]
[337176742,1725490251908,-500.0,0.00023196,2]
[337176744,1725490251918,-500.0,0.00023196,2]
[337176746,1725490251928,-552.95,0.00023196,2]
[337176748,1725490251939,-500.0,0.00023196,2]
[337176750,1725490251950,-500.0,0.00023196,2]
[337176753,1725490251962,-500.0,0.00023196,2]
[337176755,1725490251974,-441.87857141,0.00023196,2]
[337176757,1725490251984,-500.0,0.00023196,2]
[337176759,1725490251996,-500.0,0.00023196,2]
[337176761,1725490252007,-474.40963994,0.00023196,2]
[337176764,1725490252018,-500.0,0.00023196,2]
[337176766,1725490252028,-500.0,0.00023196,2]
[337176768,1725490252037,-523.52,0.00023196,2]
[337176770,1725490252047,-500.0,0.00023196,2]
[337176772,1725490252057,-500.0,0.00023196,2]
[337176774,1725490252066,-500.0,0.00023196,2]
[337176776,1725490252076,-500.0,0.00023196,2]
[337176778,1725490252087,-447.26973218,0.00023196,2]
[337176780,1725490252098,-500.0,0.00023196,2]
[337176783,1725490252114,-500.0,0.00023196,2]
[337176785,1725490252125,-500.0,0.00023196,2]
[337176787,1725490252135,-719.14,0.00023196,2]
[337176789,1725490252148,-500.0,0.00023196,2]
[337176791,1725490252160,-500.0,0.00023196,2]
[337176794,1725490252172,-500.0,0.00023196,2]
[337176796,1725490252185,-500.0,0.00023196,2]
[337176798,1725490252196,-500.0,0.00023196,2]
[337176800,1725490252207,-500.0,0.00023196,2]
[337176803,1725490252218,-500.0,0.00023196,2]
[337176805,1725490252228,-500.0,0.00023196,2]
[337176807,1725490252239,-500.0,0.00023196,2]
[337176809,1725490252249,-500.0,0.00023196,2]
[337176811,1725490252261,-1391.81,0.00023196,2]
[337176814,1725490252274,-500.0,0.00023196,2]
[337176816,1725490252286,-500.0,0.00023196,2]
[337176818,1725490252297,-507.38018017,0.00023196,2]
[337176820,1725490252307,-538.65,0.00023196,2]
[337176822,1725490252318,-500.0,0.00023196,2]
[337176824,1725490252328,-500.0,0.00023196,2]
[337176826,1725490252338,-500.0,0.00023196,2]
[337176829,1725490252348,-500.0,0.00023196,2]
[337176831,1725490252358,-500.0,0.00023196,2]
[337176833,1725490252368,-500.0,0.00023205,2]
[337176835,1725490252379,-500.0,0.00023205,2]
[337176837,1725490252389,-2218.0,0.00023205,2]
[337176839,1725490252398,-500.0,0.00023205,2]
[337176841,1725490252410,-500.0,0.00023205,2]
[337176843,1725490252420,-1371.32,0.00023205,2]
[337176845,1725490252430,-6947.79,0.00023205,2]
[337176848,1725490252441,-3500.31,0.00023205,2]
[337176850,1725490252450,-500.0,0.00023205,2]
[337176852,1725490252460,-9104.15,0.00023205,2]
[337176854,1725490252469,-9001.37,0.00023205,2]
[337176856,1725490252479,-1449.57,0.00023205,2]
[337176858,1725490252488,-565.48,0.00023205,2]
[337176860,1725490252497,-5060.31,0.00023205,2]
[337176862,1725490252507,-1014.45,0.00023205,2]
[337176864,1725490252516,-151.0,0.00023205,7]
[337176866,1725490252526,-500.0,0.00023205,2]
[337176868,1725490252536,-151.0,0.00023205,7]
[337176871,1725490252547,-500.0,0.00023205,2]
[337176873,1725490252558,-505.88458329,0.00023205,2]
[337176875,1725490252569,-1248.94,0.00023205,2]
[337176877,1725490252581,-1283.657328,0.00023205,7]
[337176880,1725490252592,-1283.657328,0.00023205,7]
[337176882,1725490252605,-1953.67,0.00023205,2]
[337176884,1725490252616,-509.11503917,0.00023205,2]
[337176887,1725490252628,-5056.57,0.00023205,2]
[337176889,1725490252637,-508.59307517,0.00023205,2]
[337176891,1725490252647,-947.9,0.00023205,2]
[337176893,1725490252657,-1085.18,0.00023205,2]
[337176895,1725490252667,-2110.89,0.00023205,2]
[337176897,1725490252679,-651.36,0.00023205,2]
[337176899,1725490252690,-742.05,0.00023205,2]
[337176902,1725490252702,-500.0,0.00023206,2]
[337176904,1725490252714,-1088.01,0.00023206,2]
[337176906,1725490252724,-500.0,0.00023206,2]
[337176909,1725490252736,-500.0,0.00023206,2]
[337176911,1725490252748,-500.0,0.00023206,2]
[337176913,1725490252759,-500.0,0.00023206,2]
[337176915,1725490252770,-500.0,0.00023206,2]
[337176918,1725490252780,-500.0,0.00023206,2]
[337176920,1725490252791,-500.0,0.00023206,2]
[337176922,1725490252801,-1000.0,0.00023206,5]
[337176924,1725490252813,-509.80361924,0.00023206,2]
[337176926,1725490252823,-1448.87,0.00023206,2]
[337176929,1725490252833,-983.7,0.00023206,2]
[337176931,1725490252845,-500.0,0.00023206,2]
[337176933,1725490252855,-500.0,0.00023206,2]
[337176935,1725490252864,-826.19,0.00023206,2]
[337176937,1725490252874,-500.0,0.00023206,2]
[337176940,1725490252886,-500.0,0.00023206,2]
[337176942,1725490252896,-500.0,0.00023206,2]
[337176944,1725490252907,-219.86688144,0.00023206,2]
[337176946,1725490252917,-500.0,0.00023206,2]
[337176948,1725490252928,-500.0,0.00023206,2]
[337176950,1725490252937,-500.0,0.00023206,2]
[337176952,1725490252947,-500.0,0.00023206,2]
[337176954,1725490252957,-506.1308689,0.00023206,2]
[337176956,1725490252967,-503.17098668,0.00023206,2]
[337176959,1725490252977,-541.84,0.00023206,2]
[337176961,1725490252987,-500.0,0.00023206,2]
[337176963,1725490252998,-500.0,0.00023206,2]
[337176965,1725490253009,-500.0,0.00023206,2]
[337176967,1725490253019,-596.56,0.00023206,2]
[337176969,1725490253030,-500.0,0.00023206,2]
[337176971,1725490253041,-500.0,0.00023206,2]
[337176973,1725490253050,-1738.11,0.00023206,2]
[337176976,1725490253061,-3593.03,0.00023206,2]
[337176978,1725490253072,-500.0,0.00023206,2]
[337176980,1725490253081,-151.0,0.00023206,7]
[337176982,1725490253091,-908.27,0.00023206,2]
[337176984,1725490253101,-524.07,0.00023206,2]
[337176986,1725490253114,-1252.18,0.00023206,2]
[337176988,1725490253123,-624.78,0.00023206,2]
[337176990,1725490253137,-151.0,0.00023206,7]
[337176992,1725490253147,-500.0,0.00023206,2]
[337176994,1725490253158,-342.80628231,0.00023206,2]
[337176996,1725490253168,-606.82,0.00023206,2]
[337176998,1725490253179,-1070.35,0.00023206,2]
[337177000,1725490253189,-500.0,0.00023206,2]
[337177003,1725490253199,-751.74,0.00023206,2]
[337177005,1725490253210,-673.89,0.00023206,2]
[337177007,1725490253220,-515.51,0.00023206,2]
[337177009,1725490253230,-500.0,0.00023206,2]
[337177011,1725490253241,-1520.13,0.00023206,2]
[337177013,1725490253250,-1221.93,0.00023206,2]
[337177015,1725490253260,-550.89,0.00023206,2]
[337177017,1725490253270,-1564.06,0.00023206,2]
[337177019,1725490253282,-1432.42,0.00023206,2]
[337177022,1725490253294,-500.0,0.00023206,2]
[337177024,1725490253306,-500.0,0.00023206,2]
[337177026,1725490253317,-765.56,0.00023206,2]
[337177028,1725490253328,-1001.12,0.00023206,2]
[337177030,1725490253339,-2890.557888,0.00023206,7]
[337177032,1725490253349,-2890.557888,0.00023206,7]
[337177035,1725490253359,-151.0,0.00023206,7]
[337177036,1725490253369,-6309.71,0.00023206,2]
[337177038,1725490253381,-500.0,0.00023206,2]
[337177041,1725490253391,-500.0,0.00023206,2]
[337177043,1725490253401,-500.0,0.00023206,2]
[337177045,1725490253412,-500.0,0.00023206,2]
[337177047,1725490253422,-505.02019746,0.00023206,2]
[337177049,1725490253433,-500.0,0.00023206,2]
[337177051,1725490253443,-1380.94,0.00023206,2]
[337177053,1725490253454,-500.0,0.00023206,2]
[337177055,1725490253467,-878.73,0.00023206,2]
[337177058,1725490253479,-468.7996942,0.00023206,2]
[337177060,1725490253490,-500.0,0.00023206,2]
[337177062,1725490253500,-999.56,0.00023206,2]
[337177064,1725490253512,-1140.42,0.00023206,2]
[337177066,1725490253524,-500.0,0.00023206,2]
[337177068,1725490253535,-500.0,0.00023206,2]
[337177070,1725490253545,-500.0,0.00023206,2]
[337177073,1725490253555,-610.83,0.00023206,2]
[337177075,1725490253565,-500.0,0.00023206,2]
[337177077,1725490253575,-1314.96,0.00023206,2]
[337177079,1725490253585,-770.42,0.00023206,2]
[337177081,1725490253597,-4802.92,0.00023206,2]
[337177083,1725490253607,-500.0,0.00023207,2]
[337177085,1725490253616,-500.0,0.00023207,2]
[337177087,1725490253627,-500.0,0.00023207,2]
[337177089,1725490253637,-500.0,0.00023207,2]
[337177121,1725490253927,-500.0,0.00023207,2]
[337177123,1725490253937,-500.0,0.00023207,2]
[337177125,1725490253949,-265.02171347,0.00023207,2]
[337177127,1725490253961,-562.43239365,0.00023207,2]
[337177129,1725490253972,-500.0,0.00023207,2]
[337177132,1725490253983,-500.0,0.00023207,2]
[337177134,1725490253993,-500.0,0.00023207,2]
[337177136,1725490254002,-500.0,0.00023207,2]
[337177138,1725490254011,-477.003583,0.00023207,2]
[337177140,1725490254022,-500.0,0.00023207,2]
[337177142,1725490254034,-500.0,0.00023207,2]
[337177144,1725490254046,-200.0,0.00023207,2]
[337177146,1725490254058,-500.0,0.00023207,2]
[337177149,1725490254070,-500.0,0.00023207,2]
[337177151,1725490254081,-500.0,0.00023207,2]
[337177153,1725490254091,-500.0,0.00023207,2]
[337177155,1725490254104,-500.0,0.00023207,2]
[337177157,1725490254118,-654.45,0.00023207,2]
[337177160,1725490254139,-500.0,0.00023207,2]
[337177162,1725490254155,-500.0,0.00023207,2]
[337177164,1725490254166,-500.0,0.00023207,2]
[337177166,1725490254176,-507.92337057,0.00023207,2]
[337177169,1725490254190,-500.0,0.00023207,2]
[337177171,1725490254202,-500.0,0.00023207,2]
[337177173,1725490254213,-500.0,0.00023207,2]
[337177175,1725490254224,-500.0,0.00023207,2]
[337177177,1725490254235,-500.0,0.00023207,2]
[337177179,1725490254247,-500.0,0.00023207,2]
[337177181,1725490254258,-500.0,0.00023207,2]
[337177183,1725490254269,-351.79274616,0.00023207,2]
[337177185,1725490254280,-1442.86,0.00023207,2]
[337177187,1725490254292,-500.0,0.00023207,2]
[337177190,1725490254305,-500.0,0.00023207,2]
[337177192,1725490254316,-500.0,0.00023207,2]
[337177194,1725490254327,-500.0,0.00023207,2]
[337177196,1725490254338,-352.80504995,0.00023207,2]
[337177197,1725490254349,-500.0,0.00023207,2]
[337177198,1725490254360,-500.0,0.00023207,2]
[337177199,1725490254371,-500.0,0.00023207,2]
[337177200,1725490254382,-500.0,0.00023207,2]
[337177201,1725490254392,-507.18006027,0.00023207,2]
[337177202,1725490254402,-558.92913785,0.00023207,2]
[337177203,1725490254414,-500.0,0.00023207,2]
[337177204,1725490254425,-521.49,0.00023207,2]
[337177205,1725490254438,-500.0,0.00023207,2]
[337177206,1725490254449,-500.0,0.00023207,2]
[337177207,1725490254459,-500.0,0.00023207,2]
[337177208,1725490254469,-550.74394511,0.00023207,2]
[337177209,1725490254479,-500.0,0.00023207,2]
[337177210,1725490254489,-506.1300333,0.00023207,2]
[337177211,1725490254499,-500.0,0.00023207,2]
[337177212,1725490254509,-531.69423959,0.00023207,2]
[337177213,1725490254519,-488.48989609,0.00023207,2]
[337177214,1725490254530,-500.0,0.00023207,2]
[337177215,1725490254539,-923.39,0.00023207,2]
[337177216,1725490254550,-500.0,0.00023207,2]
[337177217,1725490254560,-500.0,0.00023207,2]
[337177218,1725490254570,-500.0,0.00023207,2]
[337177219,1725490254580,-505.9870657,0.00023207,2]
[337177220,1725490254590,-183.55153083,0.00023207,2]
[337177221,1725490254601,-500.0,0.00023207,2]
[337177222,1725490254611,-500.0,0.00023207,2]
[337177223,1725490254622,-500.0,0.00023207,2]
[337177224,1725490254634,-1051.91,0.00023207,2]
[337177225,1725490254644,-1782.71,0.00023207,2]
[337177226,1725490254655,-500.0,0.00023207,2]
[337177227,1725490254666,-500.0,0.00023207,2]
[337177228,1725490254676,-500.0,0.00023207,2]
[337177229,1725490254687,-500.0,0.00023207,2]
[337177230,1725490254697,-500.0,0.00023207,2]
[337177231,1725490254707,-628.53,0.00023207,2]
[337177232,1725490254718,-500.0,0.00023207,2]
[337177233,1725490254729,-500.0,0.00023207,2]
[337177234,1725490254746,-193.73107102,0.00023207,2]
[337177235,1725490254757,-500.0,0.00023207,2]
[337177236,1725490254770,-500.0,0.00023207,2]
[337177237,1725490254783,-500.0,0.00023207,2]
[337177238,1725490254796,-500.0,0.00023207,2]
[337177239,1725490254809,-500.0,0.00023207,2]
[337177240,1725490254822,-696.82,0.00023207,2]
[337177241,1725490254834,-500.0,0.00023207,2]
[337177242,1725490254846,-500.0,0.00023207,2]
[337177243,1725490254857,-500.0,0.00023207,2]
[337177244,1725490254869,-570.95,0.00023207,2]
[337177245,1725490254882,-500.0,0.00023207,2]
[337177246,1725490254893,-531.57,0.00023207,2]
[337177247,1725490254906,-500.0,0.00023207,2]
[337177249,1725490254917,-500.0,0.00023207,2]
[337177251,1725490254928,-543.14,0.00023207,2]
[337177253,1725490254938,-579.07,0.00023207,2]
[337177255,1725490254950,-500.0,0.00023207,2]
[337177258,1725490254960,-381.7855058,0.00023207,2]
[337177260,1725490254970,-829.6,0.00023207,2]
[337177262,1725490254981,-351.98239707,0.00023207,2]
[337177264,1725490254992,-500.0,0.00023207,2]
[337177266,1725490255004,-500.0,0.00023207,2]
[337177268,1725490255015,-1265.79,0.00023207,2]
[337177270,1725490255026,-500.0,0.00023207,2]
[337177272,1725490255038,-500.0,0.00023207,2]
[337177275,1725490255050,-500.0,0.00023207,2]
[337177277,1725490255061,-500.0,0.00023207,2]
[337177279,1725490255073,-1214.07,0.00023207,2]
[337177281,1725490255086,-500.0,0.00023207,2]
[337177284,1725490255099,-655.4,0.00023207,2]
[337177286,1725490255113,-500.0,0.00023207,2]
[337177288,1725490255123,-500.0,0.00023207,2]
[337177290,1725490255137,-500.0,0.00023207,2]
[337177292,1725490255147,-618.08,0.00023207,2]
[337177294,1725490255158,-500.0,0.00023207,2]
[337177296,1725490255168,-500.0,0.00023207,2]
[337177298,1725490255179,-500.0,0.00023207,2]
[337177301,1725490255189,-500.0,0.00023207,2]
[337177302,1725490255199,-468.41236695,0.00023207,2]
[337177305,1725490255209,-500.0,0.00023207,2]
[337177306,1725490255219,-565.13,0.00023207,2]
[337177308,1725490255228,-500.0,0.00023207,2]
[337177310,1725490255238,-500.0,0.00023207,2]
[337177313,1725490255249,-505.28446612,0.00023207,2]
[337177315,1725490255259,-642.9,0.00023207,2]
[337177317,1725490255269,-568.28,0.00023207,2]
[337177319,1725490255279,-500.0,0.00023207,2]
[337177321,1725490255289,-500.0,0.00023207,2]
[337177323,1725490255298,-500.0,0.00023207,2]
[337177325,1725490255308,-638.65,0.00023207,2]
[337177327,1725490255318,-500.0,0.00023207,2]
[337177329,1725490255328,-1445.4,0.00023207,2]
[337177331,1725490255338,-151.0,0.00023207,7]